bitfinex-derivatives/quotes_BTCF0:USTF0_20250724
["timestamp","ask_amount","ask_price","bid_price","bid_amount"]
[1753344089572,3.26236825,118380.0,118370.0,0.07029222]
[1753344090880,3.26265825,118380.0,118370.0,0.07000222]
[1753344092682,2.66565825,118380.0,118370.0,0.07000222]
[1753344093072,3.26185825,118380.0,118370.0,0.07000222]
[1753344093272,2.66565825,118380.0,118370.0,0.07000222]
[1753344093468,3.38850625,118380.0,118370.0,0.1688696]
[1753344093981,3.43072315,118380.0,118370.0,0.1688696]
[1753344094182,1.6688696,118370.0,118360.0,0.2955454]
[1753344094478,2.9557496,118370.0,118360.0,0.2955454]
[1753344094675,3.1247176,118370.0,118360.0,0.2955454]
[1753344095578,3.1267176,118370.0,118360.0,0.2533249]
[1753344096182,3.1277176,118370.0,118360.0,0.2533249]
[1753344098577,3.1271176,118370.0,118360.0,0.2533249]
[1753344099080,1.6271176,118370.0,118360.0,0.2533249]
[1753344101779,0.862768,118370.0,118360.0,0.2533249]
[1753344102084,2.15796,118370.0,118360.0,0.3799849]
[1753344102285,2.44796,118370.0,118360.0,0.3799849]
[1753344102583,1.85216,118370.0,118360.0,0.3799849]
[1753344102783,0.3638,118370.0,118360.0,0.3799849]
[1753344103084,0.95948,118370.0,118360.0,0.45522515]
[1753344103676,0.95948,118370.0,118360.0,0.3799849]
[1753344104478,0.3638,118370.0,118360.0,0.3799849]
[1753344104678,0.95944,118370.0,118360.0,0.3799849]
[1753344107581,0.95944,118370.0,118360.0,0.45522515]
[1753344108184,0.95944,118370.0,118360.0,0.3799849]
[1753344108684,0.95872,118370.0,118360.0,0.3799849]
[1753344110582,0.95872,118370.0,118360.0,0.45522515]
[1753344111187,0.8413058,118370.0,118360.0,0.45522515]
[1753344111488,0.6982892,118370.0,118360.0,0.45522515]
[1753344111686,0.001,118370.0,118360.0,0.45522515]
[1753344111890,0.4363382,118370.0,118360.0,0.81602515]
[1753344112191,0.06878085,118380.0,118370.0,0.2955295]
[1753344112392,0.59464,118380.0,118370.0,0.37100521]
[1753344112993,0.60885473,118380.0,118370.0,0.74018701]
[1753344113288,3e-08,118380.0,118370.0,0.74018701]
[1753344113494,1.16824,118410.0,118400.0,0.12666]
[1753344113693,1.80288,118410.0,118400.0,0.2954868]
[1753344113892,1.76288,118410.0,118400.0,0.2954868]
[1753344114295,0.53810237,118420.0,118410.0,0.2453625]
[1753344114594,1.46270237,118420.0,118410.0,0.2453625]
[1753344114794,1.48262744,118420.0,118410.0,0.2453625]
[1753344115195,1.46270237,118420.0,118410.0,0.2453625]
[1753344115694,1.46570237,118420.0,118410.0,0.2453625]
[1753344116090,0.0422054,118410.0,118390.0,0.1187584]
[1753344116389,0.9554,118400.0,118390.0,0.3298074]
[1753344116994,0.9554,118400.0,118390.0,0.3580974]
[1753344117195,0.9554,118400.0,118390.0,0.3809174]
[1753344117598,1.02207517,118400.0,118390.0,0.3809174]
[1753344117790,1.02207517,118400.0,118390.0,0.44127561]
[1753344117993,1.02307517,118400.0,118390.0,0.44127561]
[1753344120293,1.19190197,118400.0,118390.0,0.39116561]
[1753344120487,1.02307517,118400.0,118390.0,0.39116561]
[1753344120999,1.04804517,118400.0,118390.0,0.39116561]
[1753344122092,1.04804517,118400.0,118390.0,0.45193561]
[1753344122892,1.21687197,118400.0,118390.0,0.39116561]
[1753344123093,1.56687197,118400.0,118390.0,0.39116561]
[1753344123301,1.21687197,118400.0,118390.0,0.39116561]
[1753344123799,1.21687197,118400.0,118390.0,0.37078561]
[1753344124299,1.04804517,118400.0,118390.0,0.37078561]
[1753344124998,1.21687197,118400.0,118390.0,0.37078561]
[1753344125299,1.56687197,118400.0,118390.0,0.2542574]
[1753344128107,1.56687197,118400.0,118390.0,0.2879974]
[1753344130620,1.56687197,118400.0,118390.0,0.3171674]
[1753344135118,1.56687197,118400.0,118390.0,0.2542574]
[1753344135622,1.56687197,118400.0,118390.0,0.2879974]
[1753344140226,1.56687197,118400.0,118390.0,0.212049]
[1753344140426,1.58679537,118400.0,118390.0,0.202469]
[1753344140719,1.56687197,118400.0,118390.0,0.202469]
[1753344141324,0.99085197,118400.0,118390.0,0.202469]
[1753344141626,1.58525197,118400.0,118390.0,0.202469]
[1753344144827,1.6051768,118400.0,118390.0,0.202469]
[1753344145231,2.7732568,118400.0,118390.0,0.202469]
[1753344145531,2.75333197,118400.0,118390.0,0.202469]
[1753344145732,0.1874211,118390.0,118380.0,0.0844248]
[1753344145931,0.9026111,118390.0,118380.0,0.2532684]
[1753344146827,0.9026111,118390.0,118380.0,0.3161784]
[1753344147131,0.9036111,118390.0,118380.0,0.3161784]
[1753344148431,0.9056111,118390.0,118380.0,0.3161784]
[1753344151035,0.2011353,118380.0,118370.0,0.31364771]
[1753344151327,1.4962553,118380.0,118370.0,0.3149495]
[1753344152435,1.4972553,118380.0,118370.0,0.3149495]
[1753344153824,1.4972553,118380.0,118370.0,0.2532895]
[1753344154228,0.9029353,118380.0,118370.0,0.3149495]
[1753344154430,1.4972553,118380.0,118370.0,0.3149495]
[1753344154734,1.4982553,118380.0,118370.0,0.3149495]
[1753344154933,1.4992553,118380.0,118370.0,0.3149495]
[1753344155434,0.9049353,118380.0,118370.0,0.3149495]
[1753344155636,1.4992553,118380.0,118370.0,0.3149495]
[1753344157037,0.9049353,118380.0,118370.0,0.3149495]
[1753344157233,0.73608,118380.0,118370.0,0.3149495]
[1753344157434,0.3926,118380.0,118370.0,0.4017195]
[1753344157635,0.97692,118380.0,118370.0,0.4017195]
[1753344157830,0.3638,118380.0,118370.0,0.4017195]
[1753344158235,0.59728,118380.0,118370.0,0.4017195]
[1753344159135,0.003,118380.0,118370.0,0.4017195]
[1753344159737,0.59728,118380.0,118370.0,0.4017195]
[1753344160839,0.003,118380.0,118370.0,0.4017195]
[1753344161032,0.59728,118380.0,118370.0,0.4017195]
[1753344161734,0.59724,118380.0,118370.0,0.4017195]
[1753344162037,0.61604,118380.0,118370.0,0.4017195]
[1753344162239,0.61604,118380.0,118370.0,0.46212856]
[1753344163340,0.0218,118380.0,118370.0,0.46212856]
[1753344163533,0.616,118380.0,118370.0,0.46212856]
[1753344164541,0.616,118380.0,118370.0,0.4017195]
[1753344169939,0.99011,118380.0,118370.0,0.3149495]
[1753344170240,0.99011,118380.0,118370.0,0.4017195]
[1753344170941,0.9768,118380.0,118370.0,0.4017195]
[1753344171342,0.3826,118380.0,118370.0,0.4017195]
[1753344171544,0.97668,118380.0,118370.0,0.4017195]
[1753344172850,0.98999,118380.0,118370.0,0.4017195]
[1753344174745,0.95784,118380.0,118370.0,0.4017195]
[1753344175046,0.97664,118380.0,118370.0,0.4017195]
[1753344175248,0.61584,118380.0,118370.0,0.4017195]
[1753344175448,0.0218,118380.0,118370.0,0.4017195]
[1753344175647,0.6158,118380.0,118370.0,0.4017195]
[1753344181552,0.003,118380.0,118370.0,0.4017195]
[1753344181859,0.59692,118380.0,118370.0,0.4017195]
[1753344182158,1.529,118390.0,118380.0,0.3111953]
[1753344182755,1.76208,118390.0,118380.0,0.3111953]
[1753344183253,0.44581517,118400.0,118390.0,0.279091]
[1753344183450,1.03969517,118400.0,118390.0,0.311181]
[1753344185757,1.04169517,118400.0,118390.0,0.311181]
[1753344186754,0.01253197,118400.0,118390.0,0.671981]
[1753344186959,0.44455337,118400.0,118390.0,0.671981]
[1753344187153,0.21397197,118400.0,118390.0,0.671981]
[1753344187348,0.15032607,118400.0,118390.0,0.671981]
[1753344187553,0.01602427,118400.0,118390.0,0.671981]
[1753344187953,0.59380007,118400.0,118390.0,1.138309]
[1753344188260,7e-08,118400.0,118390.0,1.19861759]
[1753344189155,0.03399857,118400.0,118390.0,1.19861759]
[1753344189459,0.37914,118420.0,118410.0,0.2256127]
[1753344189660,1.11983062,118420.0,118410.0,0.3111527]
[1753344191359,1.13230062,118420.0,118410.0,0.3111527]
[1753344191561,1.13530062,118420.0,118410.0,0.3111527]
[1753344191964,1.13930062,118420.0,118410.0,0.3111527]
[1753344193057,1.22809902,118420.0,118410.0,0.2722727]
[1753344193258,1.60809902,118420.0,118400.0,0.3227406]
[1753344193459,0.5604227,118410.0,118400.0,0.05823]
[1753344193763,0.1996369,118400.0,118390.0,0.3114773]
[1753344193962,1.5240769,118400.0,118390.0,0.3114773]
[1753344194364,1.5240769,118400.0,118390.0,0.2793873]
[1753344194757,0.1996512,118390.0,118380.0,0.3114981]
[1753344194954,2.0783712,118390.0,118380.0,0.2371956]
[1753344195161,0.1996654,118380.0,118370.0,0.39914259]
[1753344195353,1.50263982,118380.0,118370.0,0.311524]
[1753344196462,1.50263982,118380.0,118370.0,0.312524]
[1753344196855,1.50263982,118380.0,118370.0,0.2280894]
[1753344197058,1.50263982,118380.0,118370.0,0.001]
[1753344198165,1.50263982,118380.0,118370.0,0.1698697]
[1753344199467,1.67159182,118380.0,118370.0,0.1698697]
[1753344199665,0.1688697,118370.0,118360.0,0.31362319]
[1753344199868,0.8894797,118370.0,118360.0,0.31362319]
[1753344200168,0.8894797,118370.0,118360.0,0.22919259]
[1753344201168,0.8894797,118370.0,118360.0,0.23019259]
[1753344205874,0.8894797,118370.0,118360.0,0.255424]
[1753344206373,0.8894797,118370.0,118360.0,0.228114]
[1753344206573,0.8894797,118370.0,118360.0,0.196024]
[1753344207372,0.8894797,118370.0,118360.0,0.228114]
[1753344208571,0.8894797,118370.0,118360.0,0.1698839]
[1753344209876,0.8894797,118370.0,118360.0,0.1960239]
[1753344210076,0.8894797,118370.0,118360.0,0.2281139]
[1753344210677,0.8894797,118370.0,118360.0,0.1698839]
[1753344210979,0.9482297,118370.0,118360.0,0.1698839]
[1753344211373,0.9482297,118370.0,118360.0,0.2388239]
[1753344211879,1.5418696,118370.0,118360.0,0.3423439]
[1753344212178,0.9482296,118370.0,118360.0,0.3423439]
[1753344212479,1.373,118370.0,118360.0,0.3423439]
[1753344212676,1.5418696,118370.0,118360.0,0.3423439]
[1753344213076,1.373,118370.0,118360.0,0.3423439]
[1753344213275,1.5418696,118370.0,118360.0,0.3423439]
[1753344214480,1.5418696,118370.0,118360.0,0.2933739]
[1753344214879,0.9482296,118370.0,118360.0,0.2717039]
[1753344215181,1.5418696,118370.0,118360.0,0.2717039]
[1753344215580,1.5418696,118370.0,118360.0,0.3423439]
[1753344216180,1.5418696,118370.0,118360.0,0.40266723]
[1753344216482,1.373,118370.0,118360.0,0.40266723]
[1753344216681,1.5418696,118370.0,118360.0,0.40266723]
[1753344216882,1.373,118370.0,118360.0,0.40266723]
[1753344217283,1.5418696,118370.0,118360.0,0.40266723]
[1753344218786,0.9482296,118370.0,118360.0,0.40266723]
[1753344219080,1.5418696,118370.0,118360.0,0.40266723]
[1753344222491,1.5418696,118370.0,118360.0,0.29914723]
[1753344223992,1.5418696,118370.0,118360.0,0.29923923]
[1753344224493,1.5418696,118370.0,118360.0,0.2389159]
[1753344225694,1.5418696,118370.0,118360.0,0.2717959]
[1753344226293,1.5418695,118370.0,118360.0,0.3424359]
[1753344228797,1.373,118370.0,118360.0,0.3424359]
[1753344229498,0.77936,118370.0,118360.0,0.3424359]
[1753344229698,1.37296,118370.0,118360.0,0.3424359]
[1753344231300,1.5418295,118370.0,118360.0,0.3424359]
[1753344231488,0.9482295,118370.0,118360.0,0.3424359]
[1753344231688,1.5418295,118370.0,118360.0,0.3424359]
[1753344232500,0.9482295,118370.0,118360.0,0.3424359]
[1753344232797,1.5417895,118370.0,118360.0,0.3424359]
[1753344233601,0.9482295,118370.0,118360.0,0.3424359]
[1753344233901,1.5417895,118370.0,118360.0,0.3424359]
[1753344235100,2.7101895,118370.0,118360.0,0.3424359]
[1753344240806,2.7101895,118370.0,118360.0,0.2934659]
[1753344241301,2.7101895,118370.0,118360.0,0.124582]
[1753344241604,2.7101895,118370.0,118360.0,0.2717958]
[1753344241807,2.73045968,118370.0,118360.0,0.2717958]
[1753344241997,2.73045968,118370.0,118360.0,0.2389158]
[1753344242603,2.73045968,118370.0,118360.0,0.2722358]
[1753344243306,2.73045968,118370.0,118360.0,0.001092]
[1753344245108,2.73045968,118370.0,118360.0,0.1699758]
[1753344245406,2.73045968,118370.0,118360.0,0.001092]
[1753344247097,2.73045968,118370.0,118340.0,0.2814863]
[1753344247098,0.262547,118350.0,118340.0,0.2814863]
[1753344247297,1.73864,118350.0,118340.0,0.3840663]
[1753344247502,1.3141382,118350.0,118340.0,0.3840663]
[1753344247703,1.41864,118350.0,118340.0,0.3840663]
[1753344247902,1.76864,118350.0,118340.0,0.3840663]
[1753344248204,1.9375382,118350.0,118340.0,0.3840663]
[1753344248410,1.9375382,118350.0,118340.0,0.3890663]
[1753344249109,1.9375382,118350.0,118340.0,0.3630363]
[1753344249302,1.9375382,118350.0,118340.0,0.2775803]
[1753344251410,1.9375382,118350.0,118340.0,0.3468403]
[1753344251609,2.0046282,118350.0,118340.0,0.07536]
[1753344253411,2.0046282,118350.0,118330.0,0.2867083]
[1753344253412,0.235691,118320.0,118310.0,0.4263516]
[1753344253613,1.583741,118320.0,118310.0,0.4263516]
[1753344254112,1.21201514,118320.0,118310.0,0.4263516]
[1753344254313,1.04307414,118320.0,118310.0,0.4263516]
[1753344254513,1.02918414,118320.0,118310.0,0.4263516]
[1753344254813,1.00634414,118320.0,118310.0,0.4263516]
[1753344255410,0.37592,118320.0,118310.0,0.4263516]
[1753344255605,0.59336,118320.0,118310.0,0.4263516]
[1753344256910,0.59536,118320.0,118310.0,0.4263516]
[1753344257107,0.61705,118320.0,118310.0,0.4263516]
[1753344257917,0.63927,118320.0,118310.0,0.4263516]
[1753344258114,1.585741,118320.0,118310.0,0.4263516]
[1753344258314,1.525741,118320.0,118310.0,0.4263516]
[1753344258813,1.35236,118320.0,118310.0,0.4263516]
[1753344259018,0.40671,118320.0,118310.0,0.4263516]
[1753344259321,1.169011,118320.0,118310.0,0.4263516]
[1753344259818,1.191851,118320.0,118310.0,0.4263516]
[1753344260219,1.201301,118320.0,118310.0,0.4263516]
[1753344261115,0.40671,118320.0,118310.0,0.4263516]
[1753344261318,1.00007,118320.0,118310.0,0.4263516]
[1753344264125,0.99293,118320.0,118310.0,0.4263516]
[1753344264525,0.3628,118320.0,118310.0,0.4263516]
[1753344264726,0.95608,118320.0,118310.0,0.4263516]
[1753344266226,0.3628,118320.0,118310.0,0.4263516]
[1753344266425,0.95608,118320.0,118310.0,0.4263516]
[1753344266820,0.95608,118320.0,118310.0,0.7237516]
[1753344273027,0.37412,118330.0,118320.0,0.3435611]
[1753344273223,0.61652,118330.0,118320.0,0.3435611]
[1753344273424,1.52952,118340.0,118330.0,0.2395368]
[1753344273617,2.12272,118340.0,118330.0,0.3435468]
[1753344274130,1.52952,118340.0,118330.0,0.3435468]
[1753344274428,2.1444,118340.0,118330.0,0.3435468]
[1753344274826,0.01332,118380.0,118370.0,0.17462]
[1753344275029,0.01332,118390.0,118380.0,0.2719954]
[1753344275327,0.0606456,118400.0,118390.0,0.2719812]
[1753344275525,0.6538056,118400.0,118390.0,0.7042612]
[1753344275931,0.5671031,118400.0,118390.0,0.7042612]
[1753344276126,0.08429235,118420.0,118390.0,0.5776284]
[1753344276426,1.5,118420.0,118410.0,0.3434327]
[1753344276631,2.09312,118420.0,118410.0,0.7042327]
[1753344278034,2.09312,118420.0,118410.0,0.3434327]
[1753344278235,2.09312,118420.0,118410.0,0.7042327]
[1753344278637,2.16165956,118420.0,118410.0,0.7042327]
[1753344278837,2.16265956,118420.0,118410.0,0.7042327]
[1753344280138,2.16365956,118420.0,118410.0,0.7042327]
[1753344281639,2.16365956,118420.0,118410.0,1.0016327]
[1753344285949,0.66365956,118420.0,118410.0,1.0016327]
[1753344287147,0.59512,118420.0,118410.0,1.0016327]
[1753344288248,0.002,118420.0,118410.0,1.0016327]
[1753344288449,0.59456,118420.0,118410.0,1.0016327]
[1753344290036,0.60644,118420.0,118410.0,1.0016327]
[1753344296949,0.60777,118420.0,118410.0,1.0016327]
[1753344297145,0.61387,118420.0,118410.0,1.0016327]
[1753344297343,0.61387,118420.0,118410.0,0.6408327]
[1753344301445,1e-07,118420.0,118410.0,1.0016327]
[1753344301647,3.02948,118440.0,118430.0,0.3540348]
[1753344302043,0.00997,118450.0,118440.0,0.4384004]
[1753344302245,0.00927021,118470.0,118460.0,0.3539921]
[1753344302447,2.4222,118470.0,118460.0,0.7147921]
[1753344302753,1.5,118470.0,118460.0,0.7147921]
[1753344302956,1.23557046,118480.0,118470.0,0.2442378]
[1753344303260,1.88773046,118480.0,118470.0,0.7147778]
[1753344303454,3.38773046,118480.0,118470.0,0.7147778]
[1753344303654,2.22001046,118480.0,118470.0,0.7147778]
[1753344305557,1.62785046,118480.0,118470.0,0.7147778]
[1753344305749,2.15208,118480.0,118470.0,0.7147778]
[1753344305948,1.5284,118500.0,118490.0,0.3539493]
[1753344306151,2.12044,118500.0,118490.0,0.3539493]
[1753344306355,2.13881458,118500.0,118490.0,0.3539493]
[1753344306555,1.87917458,118500.0,118490.0,0.3539493]
[1753344306757,2.47121458,118500.0,118490.0,0.3539493]
[1753344307152,1.87917458,118500.0,118490.0,0.3539493]
[1753344307352,2.53731346,118500.0,118490.0,0.3539493]
[1753344308457,2.54231346,118500.0,118490.0,0.3539493]
[1753344310555,2.71099856,118500.0,118490.0,0.1686993]
[1753344310756,2.87231346,118500.0,118490.0,0.2443093]
[1753344311255,3.04099856,118500.0,118490.0,0.2443093]
[1753344311457,1.54099856,118500.0,118490.0,0.2443093]
[1753344311655,1.37231346,118500.0,118490.0,0.2443093]
[1753344311960,1.54499856,118500.0,118490.0,0.2443093]
[1753344312860,1.37631346,118500.0,118490.0,0.2443093]
[1753344313263,1.54499866,118500.0,118490.0,0.2443093]
[1753344313460,1.37631346,118500.0,118490.0,0.2443093]
[1753344313961,1.54499866,118500.0,118490.0,0.2443093]
[1753344314362,1.54499866,118500.0,118490.0,0.2784393]
[1753344314363,1.37631346,118500.0,118490.0,0.2784393]
[1753344314958,1.35793888,118500.0,118490.0,0.2784393]
[1753344315156,0.76589888,118500.0,118490.0,0.3539493]
[1753344315352,0.81685888,118500.0,118490.0,0.2784393]
[1753344315557,1.17765888,118500.0,118490.0,0.2784393]
[1753344316361,1.34634408,118500.0,118490.0,0.2784393]
[1753344316954,0.75458408,118500.0,118490.0,0.2784393]
[1753344317161,1.34634408,118500.0,118490.0,0.2784393]
[1753344317961,0.75458408,118500.0,118490.0,0.2784393]
[1753344318160,1.34630408,118500.0,118490.0,0.2784393]
[1753344318862,1.17761888,118500.0,118490.0,0.2784393]
[1753344319264,1.34630408,118500.0,118490.0,0.2784393]
[1753344319964,1.17761888,118500.0,118490.0,0.2784393]
[1753344320264,1.34630408,118500.0,118490.0,0.2784393]
[1753344320668,1.34630408,118500.0,118490.0,0.2443093]
[1753344320866,1.53630408,118500.0,118490.0,0.07561]
[1753344321067,1.53630408,118500.0,118490.0,0.2443094]
[1753344321662,0.1686994,118490.0,118480.0,0.508333]
[1753344321868,0.1687137,118480.0,118470.0,0.592708]
[1753344322067,1.5011537,118480.0,118470.0,0.592708]
[1753344322268,1.5011537,118480.0,118470.0,0.626088]
[1753344322467,1.07244,118480.0,118470.0,0.660218]
[1753344322769,1.07244,118480.0,118470.0,0.735728]
[1753344323867,1.1211538,118480.0,118470.0,0.735728]
[1753344324165,1.2111538,118480.0,118470.0,0.735728]
[1753344324361,1.04244,118480.0,118470.0,0.735728]
[1753344325372,0.4508,118480.0,118470.0,0.735728]
[1753344325572,0.5916,118480.0,118470.0,1.15143972]
[1753344326072,0.5916,118480.0,118470.0,0.85403972]
[1753344326264,0.5936,118480.0,118470.0,0.85403972]
[1753344326471,0.5956,118480.0,118470.0,0.85403972]
[1753344327171,0.004,118480.0,118470.0,0.85403972]
[1753344327367,0.004,118480.0,118470.0,0.80902071]
[1753344328468,1.5,118500.0,118490.0,0.2442094]
[1753344328675,2.09684,118500.0,118490.0,0.7147494]
[1753344329376,2.09684,118500.0,118490.0,1.0755494]
[1753344329973,2.09668,118500.0,118490.0,1.0755494]
[1753344330175,1.52802,118530.0,118520.0,0.02357]
[1753344330380,2.4716013,118530.0,118520.0,0.3539067]
[1753344330772,2.45340637,118530.0,118520.0,0.3539067]
[1753344331078,2.47160076,118530.0,118520.0,0.3539067]
[1753344331574,2.47760076,118530.0,118520.0,0.3539067]
[1753344331878,0.69536637,118530.0,118520.0,0.3539067]
[1753344332069,0.6869,118530.0,118520.0,0.3539067]
[1753344332271,2.10314,118530.0,118520.0,0.3539067]
[1753344332671,2.10614,118530.0,118520.0,0.3539067]
[1753344333077,2.1729001,118530.0,118520.0,0.3539067]
[1753344334972,2.1729001,118530.0,118520.0,0.6513067]
[1753344336681,2.10614,118530.0,118520.0,0.6513067]
[1753344337380,2.10614,118530.0,118520.0,0.3539067]
[1753344337984,2.17474438,118530.0,118520.0,0.3539067]
[1753344339582,2.10614,118530.0,118520.0,0.3539067]
[1753344339877,0.5456901,118530.0,118520.0,0.7147067]
[1753344340480,0.515625,118530.0,118520.0,0.7147067]
[1753344340877,2.015625,118530.0,118520.0,0.7147067]
[1753344342486,2.1842678,118530.0,118520.0,0.3539067]
[1753344342886,2.015625,118530.0,118520.0,0.3539067]
[1753344344082,2.1842678,118530.0,118520.0,0.3539067]
[1753344345487,2.9050678,118530.0,118520.0,0.2783967]
[1753344345684,2.9050678,118530.0,118520.0,0.2442667]
[1753344345888,2.9050678,118530.0,118520.0,0.1686567]
[1753344347588,2.736425,118530.0,118520.0,0.1686567]
[1753344347887,2.9050678,118530.0,118520.0,0.1686567]
[1753344348288,2.736425,118530.0,118520.0,0.1686567]
[1753344348483,2.736425,118530.0,118520.0,0.2109367]
[1753344348795,2.736425,118530.0,118520.0,0.2811967]
[1753344349889,2.09744,118530.0,118520.0,0.3548367]
[1753344350681,2.09744,118530.0,118520.0,0.2811967]
[1753344351794,2.09802,118530.0,118520.0,0.2811967]
[1753344352690,2.09744,118530.0,118520.0,0.6522367]
[1753344352889,1.59626109,118540.0,118530.0,0.3548228]
[1753344353187,0.66682109,118540.0,118530.0,0.3548228]
[1753344353388,2.16682109,118540.0,118530.0,0.3548228]
[1753344354989,2.17082109,118540.0,118530.0,0.3548228]
[1753344355590,2.17482109,118540.0,118530.0,0.3548228]
[1753344356585,2.17082109,118540.0,118530.0,0.3548228]
[1753344356891,2.17282109,118540.0,118530.0,0.3548228]
[1753344358183,2.17282109,118540.0,118530.0,0.39993528]
[1753344358691,2.17182109,118540.0,118530.0,0.69733528]
[1753344359791,2.16782109,118540.0,118530.0,0.69733528]
[1753344359985,2.16882109,118540.0,118530.0,0.69733528]
[1753344360388,0.68695182,118540.0,118530.0,0.70722369]
[1753344360589,0.68595182,118540.0,118530.0,0.70722369]
[1753344361392,0.61761073,118540.0,118530.0,0.70722369]
[1753344362297,0.61761073,118540.0,118530.0,0.69733528]
[1753344362698,0.62761073,118540.0,118530.0,0.69733528]
[1753344362993,0.60948,118540.0,118530.0,0.69733528]
[1753344363796,0.59948,118540.0,118530.0,0.69733528]
[1753344363998,0.59948,118540.0,118530.0,0.71233428]
[1753344365895,0.66785335,118540.0,118530.0,0.71233428]
[1753344370200,0.59856,118540.0,118530.0,0.71233428]
[1753344370400,0.5769763,118540.0,118530.0,1.07313428]
[1753344371605,0.5491574,118540.0,118530.0,1.07313428]
[1753344371807,0.5039499,118540.0,118530.0,1.07313428]
[1753344372003,0.2948551,118540.0,118530.0,1.07313428]
[1753344372204,0.2160529,118540.0,118530.0,1.07313428]
[1753344372404,0.1679204,118540.0,118530.0,1.07313428]
[1753344375111,6.9227066,118550.0,118540.0,0.3563089]
[1753344375302,7.5210266,118550.0,118540.0,0.7171089]
[1753344376312,7.5230266,118550.0,118540.0,0.7171089]
[1753344376512,7.5230266,118550.0,118540.0,0.77722038]
[1753344376713,7.5230266,118550.0,118540.0,0.78582752]
[1753344377107,6.9247066,118550.0,118540.0,0.78582752]
[1753344377302,7.5231066,118550.0,118540.0,0.78582752]
[1753344378810,8.3835113,118550.0,118540.0,0.32702307]
[1753344379115,8.3835113,118550.0,118540.0,0.21374307]
[1753344379312,8.3845113,118550.0,118540.0,0.21374307]
[1753344379512,8.3845113,118550.0,118540.0,0.29144307]
[1753344380716,8.2158966,118550.0,118540.0,0.29144307]
[1753344380908,8.3845113,118550.0,118540.0,0.29144307]
[1753344381109,8.2158966,118550.0,118540.0,0.29144307]
[1753344381310,7.5239066,118550.0,118540.0,0.76222307]
[1753344381511,7.5241866,118550.0,118540.0,0.7171089]
[1753344382111,7.5241866,118550.0,118540.0,0.77722038]
[1753344383116,7.5241866,118550.0,118540.0,0.77708379]
[1753344383318,7.5410666,118550.0,118540.0,0.77708379]
[1753344384316,7.4084303,118550.0,118540.0,0.77708379]
[1753344385212,7.3243409,118550.0,118540.0,0.77708379]
[1753344385412,7.0953697,118550.0,118540.0,0.77708379]
[1753344385618,6.8777421,118550.0,118540.0,0.77708379]
[1753344385816,6.7769939,118550.0,118540.0,0.77708379]
[1753344386016,6.5546951,118550.0,118540.0,0.77708379]
[1753344386213,6.4609236,118550.0,118540.0,0.77708379]
[1753344387518,6.3950766,118550.0,118540.0,0.77708379]
[1753344387813,6.3137934,118550.0,118540.0,0.77708379]
[1753344390921,6.3137934,118550.0,118540.0,0.78697031]
[1753344391120,6.3137934,118550.0,118540.0,1.08437031]
[1753344392820,5.6983134,118550.0,118540.0,1.08437031]
[1753344393023,6.3135134,118550.0,118540.0,1.08437031]
[1753344393427,6.3135134,118550.0,118540.0,1.07448379]
[1753344393428,6.3537034,118550.0,118540.0,1.07448379]
[1753344395324,6.3313934,118550.0,118540.0,1.07448379]
[1753344396629,6.3313934,118550.0,118540.0,1.08687032]
[1753344397519,6.3135134,118550.0,118540.0,1.07448379]
[1753344397719,6.3135134,118550.0,118540.0,1.08977647]
[1753344398918,6.2372204,118550.0,118540.0,1.08977647]
[1753344399114,6.2372204,118550.0,118540.0,1.1021573]
[1753344399320,5.5395246,118550.0,118540.0,1.13231896]
[1753344399526,5.4387757,118550.0,118540.0,1.74731896]
[1753344400024,5.2765552,118550.0,118540.0,1.74731896]
[1753344400224,5.1143347,118550.0,118540.0,1.74731896]
[1753344401028,4.8818537,118550.0,118540.0,1.74731896]
[1753344401625,4.7340356,118550.0,118540.0,1.74731896]
[1753344401819,4.5868964,118550.0,118540.0,1.74731896]
[1753344402129,4.3700633,118550.0,118540.0,1.91603096]
[1753344402329,4.150939,118550.0,118540.0,1.91603096]
[1753344402524,3.7611593,118550.0,118540.0,1.91603096]
[1753344402725,3.6595208,118550.0,118540.0,1.74731896]
[1753344402921,3.4497545,118550.0,118540.0,1.74731896]
[1753344403120,3.3763658,118550.0,118540.0,1.74731896]
[1753344404624,3.3763658,118550.0,118540.0,1.74763896]
[1753344404824,4.0094058,118550.0,118540.0,1.13231896]
[1753344405023,4.0094058,118550.0,118540.0,1.74743896]
[1753344405719,3.9915258,118550.0,118540.0,1.74743896]
[1753344407125,3.9915258,118550.0,118540.0,1.64187314]
[1753344407321,3.9915258,118550.0,118540.0,1.74743896]
[1753344408728,3.2481915,118550.0,118540.0,1.75732514]
[1753344408925,3.0963344,118550.0,118540.0,1.75732514]
[1753344409129,1.9826264,118550.0,118540.0,1.75732514]
[1753344409927,1.7588425,118550.0,118540.0,1.75732514]
[1753344410130,1.3344174,118550.0,118540.0,1.83237274]
[1753344410330,1.1220077,118550.0,118540.0,1.75732514]
[1753344410531,0.7849961,118550.0,118540.0,1.75732514]
[1753344410731,0.6577245,118550.0,118540.0,1.75732514]
[1753344411029,0.2461088,118550.0,118540.0,2.28683714]
[1753344411226,0.0268678,118550.0,118540.0,2.28683714]
[1753344411426,0.67895,118570.0,118560.0,0.2312027]
[1753344411626,0.67895,118570.0,118560.0,1.11326825]
[1753344411627,2.19683,118570.0,118560.0,1.11326825]
[1753344411832,2.21914,118570.0,118560.0,1.11326825]
[1753344412731,2.22214,118570.0,118560.0,1.11326825]
[1753344413030,2.22614,118570.0,118560.0,1.11326825]
[1753344414633,2.22614,118570.0,118560.0,1.121792]
[1753344414935,2.22614,118570.0,118560.0,1.13416324]
[1753344415628,2.152565,118570.0,118560.0,1.121792]
[1753344416128,2.12208,118570.0,118560.0,1.121792]
[1753344416337,0.4825081,118570.0,118560.0,1.67635645]
[1753344416633,0.3537488,118570.0,118560.0,1.82379167]
[1753344416829,0.3537488,118570.0,118560.0,1.74874723]
[1753344417034,0.4169688,118570.0,118560.0,1.74874723]
[1753344417536,0.67786,118570.0,118560.0,1.74874723]
[1753344418130,0.06422,118570.0,118560.0,1.74874723]
[1753344418632,1e-07,118570.0,118560.0,1.74874309]
[1753344419038,1e-07,118570.0,118560.0,1.76377182]
[1753344419436,1e-07,118570.0,118560.0,1.76376902]
[1753344419635,0.0632201,118570.0,118560.0,1.07412458]
[1753344419835,0.1569,118570.0,118560.0,1.68876458]
[1753344420034,0.1569,118570.0,118560.0,1.68976458]
[1753344421138,0.1569,118570.0,118560.0,1.39236458]
[1753344421339,0.1569,118570.0,118560.0,1.46840797]
[1753344421640,0.1569,118570.0,118560.0,1.39336353]
[1753344421840,0.1569,118570.0,118560.0,0.85376797]
[1753344422041,0.1569,118570.0,118560.0,1.46892797]
[1753344422638,0.11453,118570.0,118560.0,1.46892797]
[1753344422944,0.06322,118570.0,118560.0,1.45391492]
[1753344423444,0.06322,118570.0,118560.0,1.39388353]